bitfinex-derivatives/quotes_SOLF0:USTF0_20220106
["timestamp","ask_amount","ask_price","bid_price","bid_amount"]
[1641448046562,12.17981505,148.88,148.79,27.66479]
[1641448047364,31.66479,148.9,148.8,6.80091763]
[1641448048066,27.66479,148.9,148.8,6.80091763]
[1641448048267,12.18090961,148.89,148.8,6.80091763]
[1641448051271,12.18090961,148.89,148.8,10.80091763]
[1641448051471,12.18090961,148.89,148.8,6.80091763]
[1641448052472,27.66479,148.9,148.8,6.80091763]
[1641448052871,27.66479,148.9,148.8,10.80091763]
[1641448053272,27.66479,148.9,148.82,4.0]
[1641448053974,65.63696359,148.93,148.82,4.0]
[1641448054676,37.97217359,148.92,148.84,27.66479]
[1641448055677,12.17516927,148.92,148.84,27.66479]
[1641448056577,12.17516927,148.92,148.8,70.21820866]
[1641448057276,16.17516927,148.92,148.8,70.21820866]
[1641448057677,16.17516927,148.92,148.81,6.80016715]
[1641448058077,4.0,148.91,148.81,6.80016715]
[1641448058277,54.14734286,148.92,148.81,6.80016715]
[1641448058879,41.97217359,148.92,148.8,70.21820866]
[1641448059080,55.32958,148.93,148.8,70.21820866]
[1641448060882,55.32958,148.93,148.82,27.66479]
[1641448062682,4.0,148.92,148.8,70.21820866]
[1641448062883,55.32958,148.93,148.8,63.5077]
[1641448063383,12.17687759,148.92,148.81,6.800142]
[1641448063583,12.17687759,148.92,148.81,17.50997526]
[1641448064283,12.17687759,148.92,148.82,4.0]
[1641448064484,12.17687759,148.92,148.84,6.70848288]
[1641448064986,12.17687759,148.92,148.88,27.66479]
[1641448065183,37.97217359,148.94,148.88,27.66479]
[1641448065984,37.97217359,148.98,148.88,27.66479]
[1641448067687,101.91207359,148.99,148.88,27.66479]
[1641448068189,101.91207359,148.99,148.88,34.37169812]
[1641448069295,4.0,148.98,148.88,34.37169812]
[1641448069494,4.0,148.97,148.86,27.66479]
[1641448069695,4.0,148.96,148.86,27.66479]
[1641448069897,10.70983326,148.98,148.82,4.0]
[1641448070396,4.0,148.97,148.81,148.96533326]
[1641448070596,37.97217359,148.96,148.82,11.20755576]
[1641448070798,41.97217359,148.96,148.82,11.20755576]
[1641448070995,27.66479,148.95,148.84,27.66479]
[1641448071398,27.66479,148.95,148.89,4.74336515]
[1641448072601,27.66479,148.95,148.9,4.74336515]
[1641448073603,65.63696359,148.95,148.88,4.74336515]
[1641448075507,65.63696359,148.95,148.9,4.74336515]
[1641448075708,27.66479,148.95,148.9,4.74336515]
[1641448076508,27.66479,148.95,148.92,4.74336515]
[1641448078612,27.66479,148.95,148.93,4.74336515]
[1641448079210,4.0,148.94,148.84,27.66479]
[1641448080112,55.32958,148.95,148.84,27.66479]
[1641448081311,27.66479,148.92,148.84,27.66479]
[1641448084015,27.66479,148.95,148.84,27.66479]
[1641448085016,27.66479,148.95,148.84,34.3734979]
[1641448085217,3.37808078,148.94,148.85,1.36498784]
[1641448086318,3.37808078,148.94,148.85,8.16616903]
[1641448087920,27.66479,148.95,148.85,8.16616903]
[1641448088718,3.37809183,148.94,148.85,8.16616903]
[1641448089720,3.37809183,148.94,148.86,4.0]
[1641448090021,3.37809183,148.94,148.87,4.0]
[1641448090221,3.37809183,148.94,148.86,4.0]
[1641448090426,3.37809183,148.94,148.87,4.0]
[1641448090622,37.97217359,148.98,148.92,6.70510929]
[1641448091122,37.97217359,148.99,148.92,6.70510929]
[1641448091324,37.97217359,148.99,148.92,10.70510929]
[1641448091521,37.97217359,148.99,148.92,6.70510929]
[1641448091721,37.97217359,148.99,148.92,34.36989929]
[1641448092826,27.66479,149.03,148.92,34.36989929]
[1641448094025,12.16168259,149.02,148.93,6.80118119]
[1641448095125,27.66479,149.03,148.93,6.80118119]
[1641448095925,12.1619784,149.02,148.93,6.80118119]
[1641448097127,16.1619784,149.02,148.93,6.80118119]
[1641448097326,12.1619784,149.02,148.93,6.80118119]
[1641448098327,31.66479,149.03,148.93,6.80118119]
[1641448098529,4.0,149.02,148.93,6.80118119]
[1641448098828,31.66479,149.03,148.93,6.80118119]
[1641448099329,12.1622999,149.02,148.93,6.80118119]
[1641448099728,16.1622999,149.02,148.93,6.80118119]
[1641448099928,12.1622999,149.02,148.93,6.80118119]
[1641448103131,12.1622999,149.02,148.96,6.70331144]
[1641448103931,12.1622999,149.02,148.99,27.66479]
[1641448104331,37.97217359,149.04,148.99,27.66479]
[1641448104532,12.1622999,149.06,148.99,27.66479]
[1641448105131,16.1622999,149.06,148.96,6.70331144]
[1641448105533,7.58308164,148.98,148.96,6.70331144]
[1641448105732,16.1622999,149.06,148.96,6.70331144]
[1641448105935,27.66479,149.03,148.96,6.70331144]
[1641448107034,50.13447349,149.06,148.96,6.70331144]
[1641448107233,50.13447349,149.06,148.99,6.70196368]
[1641448107434,37.97217359,149.06,148.99,6.70196368]
[1641448108036,37.97217359,149.06,149.03,27.66479]
[1641448108835,68.689,149.1,149.03,27.66479]
[1641448109035,37.97217359,149.12,149.01,27.66479]
[1641448109236,4.0,149.11,149.01,27.66479]
[1641448109436,4.0,149.1,149.01,27.66479]
[1641448109636,4.0,149.11,148.99,6.70196368]
[1641448109836,4.0,149.1,148.99,6.70196368]
[1641448110037,27.66479,149.08,148.99,6.70196368]
[1641448110236,6.70600858,149.07,148.95,11.20528553]
[1641448110437,4.0,149.05,148.97,11.20528553]
[1641448110639,4.0,149.06,148.97,11.20528553]
[1641448111041,4.0,149.05,148.97,11.20528553]
[1641448111439,4.0,149.05,148.92,18.00670072]
[1641448111838,104.85087359,149.06,148.94,6.70421024]
[1641448112038,27.66479,149.05,148.97,6.70286212]
[1641448112245,27.66479,149.05,148.96,6.70331144]
[1641448112440,27.66479,149.05,148.94,6.70398552]
[1641448112640,39.8186551,149.05,148.95,6.70353612]
[1641448112840,39.8186551,149.05,148.93,27.66479]
[1641448113140,43.8186551,149.05,148.93,27.66479]
[1641448113342,31.66479,149.05,148.95,6.80141519]
[1641448113545,27.66479,149.05,148.95,6.80141519]
[1641448114044,27.66479,149.02,148.95,6.80141519]
[1641448114443,27.66479,149.02,148.94,6.80141519]
[1641448114643,27.66479,149.02,148.95,6.70353612]
[1641448115844,27.66479,149.02,148.94,6.80141519]
[1641448118851,27.66479,149.05,148.94,10.80141519]
[1641448120150,27.66479,149.05,148.96,27.66479]
[1641448121654,27.66479,149.05,148.97,6.80141519]
[1641448124557,37.97217359,149.07,148.97,6.80141519]
[1641448124558,37.97217359,149.07,148.99,4.0]
[1641448124957,37.97217359,149.07,149.0,6.70151454]
[1641448126157,65.483,149.09,149.0,6.70151454]
[1641448126961,12.15470965,149.08,149.0,6.70151454]
[1641448127659,12.15470965,149.08,148.98,6.80141519]
[1641448128459,27.66479,149.07,148.98,6.80141519]
[1641448131561,3.37344439,149.06,148.98,8.16710465]
[1641448132760,3.37344439,149.06,149.01,6.70106547]
[1641448133863,3.37344439,149.08,149.02,1.36568946]
[1641448135264,3.37344439,149.08,149.03,6.7001675]
[1641448135462,27.66479,149.11,149.03,6.7001675]
[1641448136766,3.37344439,149.1,149.04,1.36568946]
[1641448139768,3.37344439,149.1,149.07,4.73755704]
[1641448140768,27.66479,149.08,149.06,4.73755704]
[1641448142271,3.37344439,149.07,149.03,11.43772454]
[1641448144371,3.37344439,149.07,149.06,4.73755704]
[1641448146574,3.37344439,149.07,149.05,4.73755704]
[1641448147276,3.37344439,149.07,149.05,5.704e-05]
[1641448147675,7.37344439,149.07,149.05,5.704e-05]
[1641448147876,3.37344439,149.07,149.01,6.8010932]
[1641448148475,3.37344439,149.07,148.98,6.70241287]
[1641448148476,7.37344439,149.07,148.98,6.70241287]
[1641448148674,27.66479,149.03,148.96,6.8010932]
[1641448152881,55.32958,148.97,148.9,56.94566574]
[1641448154080,55.32958,148.97,148.86,27.66479]
[1641448154883,27.66479,148.93,148.86,27.66479]
[1641448157886,27.66479,148.93,148.85,11.20706248]
[1641448166495,20.07709944,148.93,148.85,11.20706248]
[1641448168903,20.07709944,148.93,148.85,15.20706248]
[1641448169204,67.9425,148.96,148.88,6.70690812]
[1641448169401,67.9425,148.96,148.87,27.66479]
[1641448171203,67.9425,148.96,148.85,11.20706248]
[1641448172707,67.9425,148.96,148.87,6.70735797]
[1641448172905,27.66479,148.97,148.87,6.70735797]
[1641448173107,27.66479,148.97,148.88,27.66479]
[1641448173605,27.66479,148.97,148.87,6.70735797]
[1641448174206,31.66479,148.97,148.87,6.70735797]
[1641448174708,27.66479,148.97,148.87,6.70735797]
[1641448175809,31.66479,148.97,148.87,6.70735797]
[1641448176108,27.66479,148.97,148.87,6.70735797]
[1641448177111,31.66479,148.97,148.87,6.70735797]
[1641448177510,31.66479,148.97,148.85,18.00195524]
[1641448177511,4.0,148.93,148.85,18.00195524]
[1641448178312,27.66479,148.97,148.85,6.79489276]
[1641448178513,27.66479,148.97,148.83,62.03851294]
[1641448178514,4.0,148.91,148.84,6.79489276]
[1641448178711,4.0,148.93,148.84,6.79489276]
[1641448178913,4.0,148.92,148.84,6.79489276]
[1641448179212,27.66479,148.91,148.84,6.79489276]
[1641448180414,31.66479,148.91,148.84,6.79489276]
[1641448180611,4.0,148.9,148.84,6.79489276]
[1641448181312,27.66479,148.88,148.84,6.79489276]
[1641448182813,27.66479,148.88,148.83,6.70893294]
[1641448184715,27.66479,148.88,148.82,17.99541717]
[1641448186218,4.0,148.86,148.82,17.99541717]
[1641448187218,27.66479,148.88,148.82,17.99541717]
[1641448187219,27.66479,148.83,148.82,17.99541717]
[1641448188019,27.66479,148.83,148.78,17.99541717]
[1641448189520,27.66479,148.83,148.77,1.3631626]
[1641448189921,31.66479,148.83,148.77,1.3631626]
[1641448190119,36.70679,148.83,148.77,1.3631626]
[1641448190319,4.0,148.82,148.77,1.3631626]
[1641448190520,4.0,148.81,148.77,1.3631626]
[1641448190921,4.0,148.8,148.77,1.3631626]
[1641448191123,27.66479,148.78,148.77,1.3631626]
[1641448191322,27.66479,148.78,148.75,11.20052441]
[1641448191621,66.3696,148.82,148.73,19.35857977]
[1641448192421,66.3696,148.82,148.73,1.3631626]
[1641448193321,27.66479,148.83,148.76,6.71231038]
[1641448193523,27.66479,148.83,148.76,13.92631038]
[1641448193724,64.5915,148.89,148.76,13.92631038]
[1641448193923,68.5915,148.89,148.76,13.92631038]
[1641448194624,68.5915,148.89,148.77,69.3236626]
[1641448194923,4.0,148.88,148.77,69.3236626]
[1641448195125,27.66479,148.86,148.77,69.3236626]
[1641448195725,27.66479,148.86,148.78,19.36864637]
[1641448195924,31.66479,148.86,148.78,19.36864637]
[1641448196124,27.66479,148.86,148.78,19.36864637]
[1641448196326,4.0,148.84,148.78,19.36864637]
[1641448196524,10.36,148.84,148.78,8.16174527]
[1641448196926,4.0,148.83,148.78,8.16174527]
[1641448197227,27.66479,148.83,148.78,8.16174527]
[1641448197626,27.66479,148.83,148.75,1.3631626]
[1641448199125,66.3844,148.85,148.75,29.0279526]
[1641448200626,66.3844,148.85,148.76,8.16174527]
[1641448200826,66.3844,148.85,148.76,75.52474527]
[1641448201927,27.66479,148.86,148.8,4.0]
[1641448202129,37.97217359,148.92,148.8,9.332]
[1641448202328,37.97217359,148.92,148.81,64.7581]
[1641448203330,27.66479,148.9,148.81,92.42289]
[1641448203530,27.66479,148.9,148.82,19.36946301]
[1641448207332,31.66479,148.9,148.82,19.36946301]
[1641448208231,31.66479,148.9,148.82,8.16174527]
[1641448208432,4.7440829,148.88,148.87,4.7440829]
[1641448209935,4.7440829,148.88,148.82,8.16174527]
[1641448211337,27.66479,148.87,148.82,8.16174527]
[1641448211737,4.7440829,148.88,148.87,4.74411086]
[1641448212338,4.7440829,148.88,148.87,11.93511086]
[1641448212537,4.7440829,148.88,148.87,7.191]
[1641448213038,3.38051086,148.89,148.87,7.191]
[1641448213238,3.38051086,148.89,148.88,27.66479]
[1641448213637,37.97217359,148.95,148.87,7.191]
[1641448213839,27.66479,148.96,148.87,1.3631626]
[1641448214641,31.66479,148.96,148.87,1.3631626]
[1641448214842,4.0,148.95,148.85,6.70825787]
[1641448215340,4.0,148.94,148.83,34.46337267]
[1641448216241,4.0,148.93,148.83,34.46337267]
[1641448216442,4.0,148.9,148.84,67.1107]
[1641448216643,4.0,148.91,148.83,6.79858267]
[1641448216842,6.431,148.9,148.83,6.79858267]
[1641448217442,38.09579,148.9,148.83,6.79858267]
[1641448217642,38.09579,148.9,148.8,68.3592]
[1641448218543,38.09579,148.9,148.81,18.00453473]
[1641448218943,4.0,148.89,148.81,18.00453473]
[1641448219145,4.0,148.87,148.81,18.00453473]
[1641448219343,27.66479,148.9,148.81,18.00453473]
[1641448219543,31.66479,148.9,148.81,18.00453473]
[1641448219744,4.0,148.89,148.81,18.00453473]
[1641448220144,4.0,148.88,148.81,18.00453473]
[1641448220345,4.0,148.88,148.78,6.79858267]
[1641448220647,4.0,148.87,148.78,6.79858267]
[1641448220947,4.0,148.88,148.78,6.79858267]
[1641448221348,4.0,148.88,148.78,11.97358267]
[1641448221548,27.66479,148.9,148.78,11.97358267]
[1641448221949,27.66479,148.9,148.78,23.17953473]
[1641448222549,27.66479,148.9,148.79,4.0]
[1641448223649,27.66479,148.9,148.81,27.66479]
[1641448224650,27.66479,148.9,148.8,68.8054]
[1641448224950,27.66479,148.9,148.82,6.79858267]
[1641448225751,27.66479,148.9,148.81,34.46337267]
[1641448226455,27.66479,148.9,148.82,6.79858267]
[1641448226652,23.50432798,148.9,148.82,6.79858267]
[1641448233260,23.50432798,148.9,148.83,10.709158]
[1641448233460,67.3954,148.93,148.83,10.709158]
[1641448233659,67.3954,148.93,148.86,27.66479]
[1641448233861,27.66479,148.94,148.86,34.44779]
[1641448234058,37.97217359,148.95,148.86,34.44779]
[1641448235059,34.37507351,148.97,148.87,6.79858267]
[1641448235060,27.66479,148.97,148.87,6.79858267]
[1641448236260,12.16889829,148.96,148.87,6.79858267]
[1641448237161,27.66479,148.97,148.87,6.79858267]
[1641448238162,27.66479,148.97,148.89,4.0]
[1641448238361,27.66479,148.97,148.91,4.0]
[1641448238561,37.97217359,149.0,148.91,4.0]
[1641448239763,37.97217359,149.0,148.9,10.70578374]
[1641448239964,12.16225433,149.03,148.9,10.70578374]
[1641448240163,12.16225433,149.03,148.92,27.66479]
[1641448240363,12.16225433,149.03,148.92,32.95379]
[1641448241164,12.16225433,149.03,148.93,6.79858267]
[1641448241565,12.16225433,149.03,148.93,70.17108267]
[1641448242569,12.16225433,149.03,148.95,4.0]
[1641448242768,12.16225433,149.03,148.95,8.45]
[1641448243569,12.16225433,149.03,148.96,10.70308677]
[1641448243768,27.66479,149.06,148.98,4.0]
[1641448243969,37.97217359,149.08,148.98,4.486]
[1641448244170,37.97217359,149.08,149.03,27.66479]
[1641448244469,37.97217359,149.08,149.03,32.40679]
[1641448245170,37.97217359,149.1,149.03,32.40679]
[1641448246271,37.97217359,149.1,149.03,64.07158]
[1641448246472,12.15498317,149.11,149.03,64.07158]
[1641448246671,12.15498317,149.11,149.04,6.69949419]
[1641448246871,12.15498317,149.11,149.04,10.69949419]
[1641448247372,12.15498317,149.11,149.04,6.69949419]
[1641448248371,4.0,149.13,149.04,13.49765078]
[1641448248572,27.66479,149.14,149.04,13.49765078]
[1641448249375,12.15498317,149.13,149.04,13.49765078]
[1641448249675,16.15498317,149.13,149.04,13.49765078]
[1641448250375,12.15498317,149.13,149.04,13.49765078]
[1641448250576,12.15498317,149.13,149.04,6.69949419]
[1641448252779,50.12715676,149.13,149.04,6.69949419]
[1641448254478,3.37203083,149.12,149.05,1.36506421]
[1641448254678,3.37203083,149.12,149.05,7.87006421]
[1641448255479,3.37203083,149.12,149.06,1.36506421]
[1641448257081,3.37203083,149.12,149.05,6.98006421]
[1641448257482,4.0,149.11,149.05,1.36506421]
[1641448257680,7.37203083,149.12,149.05,1.36506421]
[1641448257883,7.37203083,149.12,149.0,6.70151454]
[1641448258080,45.34420442,149.12,149.0,6.70151454]
[1641448258482,4.0,149.11,149.0,6.70151454]
[1641448258681,27.66479,149.09,149.0,38.36630454]
[1641448258881,64.9852,149.11,149.01,4.0]
[1641448259085,41.34420442,149.12,149.01,11.098]
[1641448259482,37.97217359,149.1,149.02,4.0]
[1641448260182,37.97217359,149.1,149.01,75.39284351]
[1641448260585,37.97217359,149.1,149.03,27.66479]
[1641448261183,53.49918759,149.13,149.03,33.02963351]
[1641448261385,53.49918759,149.13,149.03,35.72957656]
[1641448261583,53.49918759,149.13,149.03,39.72957656]
[1641448261786,53.49918759,149.13,149.04,4.0]
[1641448261985,3.37203083,149.12,149.04,13.71622523]
[1641448262184,3.37203083,149.12,149.04,17.71622523]
[1641448262384,3.37203083,149.12,149.05,4.0]
[1641448262585,3.37203083,149.12,149.06,27.66479]
[1641448262985,15.527014,149.13,149.06,27.66479]
[1641448263786,15.527014,149.13,149.07,1.36484351]
[1641448264688,15.527014,149.13,149.07,5.36484351]
[1641448264889,3.37203083,149.13,149.07,5.36484351]
[1641448265087,3.37203083,149.13,149.07,1.36484351]
[1641448265489,3.37203083,149.13,149.07,5.36484351]
[1641448265692,3.083e-05,149.13,149.09,4.0]
[1641448266187,3.083e-05,149.13,149.07,1.36484351]
[1641448266389,27.66479,149.15,149.09,4.0]
[1641448266588,27.66479,149.15,149.09,27.66479]
[1641448268292,27.66479,149.15,149.12,4.0]
[1641448268490,27.66479,149.15,149.12,8.481]
[1641448268691,27.66479,149.15,149.12,4.481]
[1641448271994,27.66479,149.15,149.13,4.0]
[1641448272195,37.97217359,149.2,149.14,4.0]
[1641448272395,14.01217359,149.2,149.18,4.0]
[1641448272597,14.01217359,149.2,149.19,27.66479]
[1641448273197,5.97217359,149.2,149.19,27.66479]
[1641448273396,93.78369,149.27,149.19,27.66479]
[1641448273797,29.33106183,149.26,149.19,27.66479]
[1641448275397,12.1322094,149.26,149.19,27.66479]
[1641448275598,4.73294118,149.2,149.19,32.39827913]
[1641448275999,12.1322094,149.26,149.19,43.09082364]
[1641448276201,31.94566574,149.31,149.25,4.0]
[1641448276399,31.94566574,149.31,149.25,6.335]
[1641448276602,31.94566574,149.31,149.27,27.66479]
[1641448277200,31.94566574,149.33,149.27,27.66479]
[1641448278402,27.66479,149.34,149.25,6.335]
[1641448279002,4.0,149.29,149.24,27.66479]
[1641448279203,10.425,149.29,149.21,27.66479]
[1641448279405,6.425,149.29,149.21,27.66479]
[1641448279804,6.425,149.29,149.19,6.69276846]
[1641448280305,4.0,149.3,149.19,6.69276846]
[1641448280808,27.66479,149.27,149.19,6.69276846]
[1641448284313,4.0,149.25,149.18,27.66479]
[1641448284612,31.66479,149.27,149.15,27.66479]
[1641448284814,27.66479,149.24,149.15,27.66479]
[1641448287116,4.0,149.23,149.15,27.66479]
[1641448287314,4.0,149.21,149.11,27.66479]
[1641448287614,4.0,149.19,149.08,6.69769934]
[1641448288017,4.0,149.2,149.08,6.69769934]
[1641448288415,4.0,149.2,149.08,17.91152046]
[1641448288817,27.66479,149.18,149.08,17.91152046]
[1641448290816,27.66479,149.18,149.08,6.69769934]
[1641448291419,17.19157713,149.23,149.09,4.0]
[1641448291616,17.19157713,149.23,149.12,6.69612964]
[1641448293119,4.0,149.22,149.12,6.69612964]
[1641448293319,4.0,149.23,149.12,6.69612964]
[1641448293919,37.88033738,149.22,149.12,6.69612964]
[1641448294121,41.88033738,149.22,149.09,6.69747505]
[1641448294319,4.0,149.21,149.09,6.69747505]
[1641448294521,37.88033738,149.22,149.09,10.69747505]
[1641448295119,41.88033738,149.22,149.09,6.69747505]
[1641448295320,37.88033738,149.21,149.09,6.69747505]
[1641448296019,4.0,149.2,149.09,6.69747505]
[1641448296220,37.88033738,149.21,149.09,6.69747505]
[1641448296820,27.66479,149.2,149.11,27.66479]
[1641448298223,27.66479,149.2,149.12,6.81106883]
[1641448302325,12.13023474,149.19,149.09,6.69747505]
[1641448304128,12.13023474,149.19,149.09,10.69747505]
[1641448305031,12.13023474,149.19,149.11,27.66479]
[1641448305629,90.86059,149.2,149.11,27.66479]
[1641448306530,3.36451589,149.19,149.12,1.37041239]
[1641448306729,3.36451589,149.19,149.12,8.18148122]
[1641448307432,3.36451589,149.19,149.13,6.69568129]
[1641448308735,3.36451589,149.19,149.14,1.37041239]
[1641448308935,15.48988725,149.23,149.14,8.32841239]
[1641448309135,15.48988725,149.23,149.15,27.66479]
[1641448309839,15.48988725,149.23,149.16,1.37041239]
[1641448310936,3.36451589,149.23,149.16,1.37041239]
[1641448311136,3.36451589,149.23,149.16,8.18132913]
[1641448317242,7.36451589,149.23,149.16,8.18132913]
[1641448318146,3.36451589,149.23,149.16,8.18132913]
[1641448318342,3.36451589,149.22,149.16,1.37041239]
[1641448319143,15.49084115,149.23,149.16,1.37041239]
[1641448321744,4.0,149.21,149.16,1.37041239]
[1641448321945,4.0,149.19,149.16,1.37041239]
[1641448322145,4.0,149.2,149.16,1.37041239]
[1641448322345,7.36451589,149.2,149.14,1.37041239]
[1641448323348,35.02930589,149.2,149.14,1.37041239]
[1641448324247,3.36451589,149.19,149.13,1.37041239]
[1641448324446,7.36451589,149.19,149.13,1.37041239]
[1641448324647,3.36451589,149.19,149.13,1.37041239]
[1641448325846,3.36451589,149.18,149.1,8.18151471]
[1641448326246,3.36451589,149.18,149.1,14.87854123]
[1641448326446,3.36451589,149.18,149.13,4.0]
[1641448326646,3.36451589,149.18,149.1,18.87854123]
[1641448326847,3.36451589,149.18,149.11,4.0]
[1641448327046,12.12632526,149.19,149.14,1.37041239]
[1641448327246,15.49084115,149.23,149.14,1.37041239]
[1641448327648,15.49084115,149.23,149.14,29.03520239]
[1641448328146,15.49084115,149.23,149.15,1.37041239]
[1641448328948,15.49084115,149.23,149.15,8.18134984]
[1641448330948,3.36451589,149.23,149.15,8.18134984]
[1641448333349,3.36451589,149.23,149.16,6.69411253]
[1641448334050,3.36451589,149.23,149.17,27.66479]
[1641448335970,3.36451589,149.24,149.18,8.18134984]
[1641448336168,3.36451589,149.24,149.21,4.73343642]
[1641448337669,15.4882736,149.25,149.2,4.73343642]
[1641448338573,4.7332687,149.22,149.2,6.694]
[1641448340175,67.8865,149.27,149.21,1.37041239]
[1641448340176,4.7332687,149.24,149.21,1.37041239]
[1641448340776,4.7332687,149.24,149.22,6.69164882]
[1641448340977,6.87e-05,149.24,149.22,6.69164882]
[1641448341975,3.36451589,149.26,149.22,6.69164882]
[1641448342177,3.36451589,149.3,149.23,29.03520239]
[1641448342378,3.36451589,149.3,149.23,33.75620239]
[1641448343476,3.36451589,149.3,149.24,1.37041239]
[1641448345177,7.36451589,149.3,149.24,1.37041239]
[1641448345377,15.48213965,149.3,149.24,1.37041239]
[1641448345577,19.48213965,149.3,149.24,1.37041239]
[1641448346381,3.36451589,149.29,149.21,1.37041239]
[1641448347379,3.36451589,149.29,149.24,6.69052956]
[1641448348680,3.36451589,149.3,149.25,1.37041239]
[1641448350281,27.66479,149.3,149.25,1.37041239]
[1641448350582,27.66479,149.3,149.21,1.37041239]
[1641448351081,31.66479,149.3,149.21,1.37041239]
[1641448351284,15.47879945,149.29,149.21,8.18176047]
[1641448353182,3.36109169,149.29,149.21,8.18176047]
[1641448353685,7.36109169,149.29,149.21,8.18176047]
[1641448354086,3.36109169,149.28,149.21,1.37041239]
[1641448354284,35.02588169,149.28,149.21,1.37041239]
[1641448355185,4.0,149.27,149.21,1.37041239]
[1641448355485,7.36109169,149.27,149.21,1.37041239]
[1641448355685,4.0,149.23,149.21,1.37041239]
[1641448355887,4.0,149.22,149.17,11.21240351]
[1641448356086,4.0,149.21,149.17,11.21240351]
[1641448356285,27.66479,149.2,149.12,56.80876123]
[1641448356486,27.66479,149.2,149.11,34.36114384]
[1641448356788,27.03131534,149.2,149.11,34.36114384]
[1641448357186,95.14391534,149.2,149.11,34.36114384]
[1641448357687,95.14391534,149.2,149.12,6.81182056]
[1641448358097,68.1126,149.2,149.12,6.81182056]
[1641448358296,27.66479,149.23,149.12,6.81182056]
[1641448358497,68.4794,149.22,149.13,63.8323]
[1641448359097,37.88033738,149.25,149.16,6.69411253]
[1641448359498,37.88033738,149.25,149.13,63.8323]
[1641448359697,27.66479,149.26,149.15,6.69478476]
[1641448359897,4.0,149.25,149.15,6.69478476]
[1641448360498,62.9033,149.24,149.15,34.35957476]
[1641448360701,62.9033,149.24,149.15,27.66479]
[1641448361398,27.66479,149.26,149.15,34.35957476]
[1641448361599,27.66479,149.26,149.16,10.81182056]
[1641448362299,65.54512738,149.28,149.19,27.66479]
[1641448363300,27.66479,149.28,149.19,27.66479]
[1641448363802,65.8598,149.29,149.2,6.69254451]
[1641448364001,65.8598,149.29,149.2,13.50436507]
[1641448364503,65.8598,149.29,149.22,27.66479]
[1641448365601,37.88033738,149.33,149.22,27.66479]
[1641448365802,101.59113738,149.33,149.22,27.66479]
[1641448366001,101.59113738,149.33,149.22,31.66479]
[1641448366201,75.82601334,149.33,149.24,6.69075338]
[1641448366401,75.82601334,149.33,149.25,27.66479]
[1641448367002,75.82601334,149.33,149.25,94.81749]
[1641448367502,63.7108,149.33,149.25,94.81749]
[1641448370706,63.7108,149.33,149.25,67.1527]
[1641448371108,63.7108,149.33,149.24,6.69075338]
[1641448371506,12.115157,149.32,149.24,6.69075338]
[1641448372509,12.115157,149.32,149.25,27.66479]
[1641448373711,77.766457,149.33,149.25,27.66479]
[1641448374610,65.6513,149.33,149.25,27.66479]
[1641448375010,65.6513,149.33,149.23,74.29350107]
[1641448375510,12.11452911,149.32,149.23,74.29350107]
[1641448376710,12.11452911,149.32,149.24,6.81105221]
[1641448377112,16.11452911,149.32,149.24,6.81105221]
[1641448377512,4.0,149.31,149.24,6.81105221]
[1641448378412,4.0,149.31,149.2,69.73002056]
[1641448378713,27.66479,149.3,149.2,97.39481056]
[1641448379613,63.8757,149.29,149.2,97.39481056]
[1641448380014,37.88033738,149.32,149.21,6.81105221]
[1641448380216,67.8035,149.31,149.21,6.81105221]
[1641448380714,67.8035,149.31,149.23,27.66479]
[1641448381614,67.8035,149.31,149.24,6.81105221]
[1641448383317,67.8035,149.31,149.23,27.66479]
[1641448385718,71.8035,149.31,149.23,27.66479]
[1641448385921,67.8035,149.31,149.2,90.70249]
[1641448386121,67.8035,149.31,149.2,27.66479]
[1641448386321,67.8035,149.31,149.18,151.53983934]
[1641448386520,71.8035,149.31,149.18,216.96883934]
[1641448386721,27.66479,149.27,149.19,27.66479]
[1641448386921,27.66479,149.27,149.19,34.47598261]
[1641448387321,4.0,149.26,149.19,6.81119261]
[1641448387723,4.0,149.25,149.19,6.81119261]
[1641448388123,4.0,149.25,149.2,6.81119261]
[1641448388622,27.66479,149.24,149.2,6.81119261]
[1641448389423,27.66479,149.24,149.15,6.81134143]
[1641448390124,27.66479,149.24,149.15,13.50612619]
[1641448391724,31.66479,149.24,149.15,13.50612619]
[1641448391926,4.0,149.2,149.15,6.81134143]
[1641448392129,7.182,149.2,149.15,6.81134143]